[Event "Early-Titled-Tuesday-Blitz-December-26-2023"]
[Site "Chess.com"]
[Date "2023.12.26"]
[Round "1"]
[White "Giantgoogachess"]
[Black "krasavetc"]
[Result "1-0"]
[WhiteElo "2381"]
[BlackElo "2641"]
[TimeControl "180+1"]
[EndTime "8:06:54 PST"]
[Termination "Giantgoogachess won by checkmate"]

1. d4 {[%clk 0:02:53.2]} 1... Nf6 {[%clk 0:02:59.4]} 2. c4 {[%clk 0:02:52.7]}
2... e6 {[%clk 0:02:59.7]} 3. Nc3 {[%clk 0:02:52.9]} 3... Bb4 {[%clk 0:02:59.2]}
4. f3 {[%clk 0:02:53.2]} 4... O-O {[%clk 0:02:50.7]} 5. a3 {[%clk 0:02:53]} 5...
Bxc3+ {[%clk 0:02:50.6]} 6. bxc3 {[%clk 0:02:53.9]} 6... d6 {[%clk 0:02:51.1]}
7. e4 {[%clk 0:02:52]} 7... e5 {[%clk 0:02:51.4]} 8. Bd3 {[%clk 0:02:51.1]} 8...
Nc6 {[%clk 0:02:49.6]} 9. Ne2 {[%clk 0:02:51.1]} 9... Na5 {[%clk 0:02:45.6]} 10.
g4 {[%clk 0:02:46]} 10... Be6 {[%clk 0:02:44.7]} 11. d5 {[%clk 0:02:31.2]} 11...
Bd7 {[%clk 0:02:43.5]} 12. Ng3 {[%clk 0:02:30.4]} 12... c6 {[%clk 0:02:31.1]}
13. h4 {[%clk 0:02:28.4]} 13... Rc8 {[%clk 0:02:30.3]} 14. Qe2 {[%clk
0:02:21.5]} 14... cxd5 {[%clk 0:02:19.2]} 15. cxd5 {[%clk 0:02:22.4]} 15... Rxc3
{[%clk 0:02:04.6]} 16. Be3 {[%clk 0:02:21.2]} 16... Nb3 {[%clk 0:01:56.1]} 17.
Rb1 {[%clk 0:02:19.8]} 17... Qa5 {[%clk 0:01:34.4]} 18. Kf2 {[%clk 0:02:18]}
18... Rfc8 {[%clk 0:01:30.6]} 19. g5 {[%clk 0:02:14.7]} 19... Ne8 {[%clk
0:01:30.1]} 20. h5 {[%clk 0:02:14.1]} 20... Nc5 {[%clk 0:01:23.4]} 21. Bb5
{[%clk 0:02:04.8]} 21... Bxb5 {[%clk 0:01:19.3]} 22. Qxb5 {[%clk 0:02:05.7]}
22... Qxa3 {[%clk 0:01:11.6]} 23. Nf5 {[%clk 0:02:03.4]} 23... Rxe3 {[%clk
0:00:57.1]} 24. Nxe3 {[%clk 0:01:59]} 24... Nd3+ {[%clk 0:00:57.1]} 25. Kg3
{[%clk 0:01:55.6]} 25... Nf4 {[%clk 0:00:56.1]} 26. Nf5 {[%clk 0:01:54.5]} 26...
Kf8 {[%clk 0:00:38]} 27. Qxb7 {[%clk 0:01:51.6]} 27... Qc3 {[%clk 0:00:13.9]}
28. Qe7+ {[%clk 0:01:48.2]} 28... Kg8 {[%clk 0:00:12.9]} 29. Rb7 {[%clk
0:01:42.1]} 29... Nc7 {[%clk 0:00:08.3]} 30. Nxd6 {[%clk 0:01:37.5]} 30... Qc2
{[%clk 0:00:08.6]} 31. Qxe5 {[%clk 0:00:42.9]} 31... Ne2+ {[%clk 0:00:07.8]} 32.
Kg4 {[%clk 0:00:41.7]} 32... Rf8 {[%clk 0:00:06.9]} 33. Nf5 {[%clk 0:00:37.2]}
33... f6 {[%clk 0:00:06.5]} 34. Qe7 {[%clk 0:00:35.4]} 34... Rf7 {[%clk
0:00:06.9]} 35. Rb8+ {[%clk 0:00:34.7]} 35... Ne8 {[%clk 0:00:04.3]} 36. Rxe8+
{[%clk 0:00:34]} 36... Rf8 {[%clk 0:00:03.7]} 37. Qxf8# {[%clk 0:00:34.4]} 1-0

[Event "Early-Titled-Tuesday-Blitz-December-26-2023"]
[Site "Chess.com"]
[Date "2023.12.26"]
[Round "1"]
[White "Chessdreamer2020"]
[Black "GMBenjaminBok"]
[Result "0-1"]
[WhiteElo "2530"]
[BlackElo "2985"]
[TimeControl "180+1"]
[EndTime "8:06:57 PST"]
[Termination "GMBenjaminBok won by resignation"]

1. e4 {[%clk 0:03:00.9]} 1... c5 {[%clk 0:02:59.1]} 2. Nf3 {[%clk 0:03:00.8]}
2... d6 {[%clk 0:02:59.2]} 3. Bb5+ {[%clk 0:02:59.3]} 3... Nd7 {[%clk 0:02:59]}
4. a4 {[%clk 0:02:57.4]} 4... Nf6 {[%clk 0:02:58.4]} 5. Nc3 {[%clk 0:02:57.5]}
5... a6 {[%clk 0:02:58.7]} 6. Be2 {[%clk 0:02:58]} 6... g6 {[%clk 0:02:59.1]} 7.
O-O {[%clk 0:02:58.3]} 7... Bg7 {[%clk 0:02:59.6]} 8. a5 {[%clk 0:02:58.8]} 8...
O-O {[%clk 0:02:59.7]} 9. d4 {[%clk 0:02:59.2]} 9... cxd4 {[%clk 0:02:53.7]} 10.
Nxd4 {[%clk 0:02:56.1]} 10... Nc5 {[%clk 0:02:44.7]} 11. Bf3 {[%clk 0:02:46.5]}
11... Bd7 {[%clk 0:02:24.8]} 12. Re1 {[%clk 0:02:41.8]} 12... Rc8 {[%clk
0:02:21.1]} 13. Nd5 {[%clk 0:02:39.4]} 13... Bc6 {[%clk 0:01:40.8]} 14. Bg5
{[%clk 0:02:25.2]} 14... Ncd7 {[%clk 0:01:03.4]} 15. Nb4 {[%clk 0:02:03.2]}
15... h6 {[%clk 0:00:50.7]} 16. Bh4 {[%clk 0:01:53.4]} 16... Ne5 {[%clk
0:00:47.2]} 17. c3 {[%clk 0:01:42.3]} 17... Bd7 {[%clk 0:00:45]} 18. Nd5 {[%clk
0:01:36.7]} 18... g5 {[%clk 0:00:40.1]} 19. Bg3 {[%clk 0:01:35.8]} 19... Nc4
{[%clk 0:00:40.6]} 20. Ra2 {[%clk 0:01:19.4]} 20... Nxd5 {[%clk 0:00:30.6]} 21.
exd5 {[%clk 0:01:18.9]} 21... Nxa5 {[%clk 0:00:31.3]} 22. Rxa5 {[%clk
0:01:09.1]} 22... Qxa5 {[%clk 0:00:30.8]} 23. Rxe7 {[%clk 0:01:10]} 23... Bxd4
{[%clk 0:00:18]} 24. Qxd4 {[%clk 0:01:07.9]} 24... Qa1+ {[%clk 0:00:16.7]} 25.
Bd1 {[%clk 0:01:08.2]} 25... Rfe8 {[%clk 0:00:13.5]} 26. Bxd6 {[%clk 0:01:06.2]}
26... Qxb2 {[%clk 0:00:10.7]} 27. h4 {[%clk 0:00:59.9]} 27... Rxe7 {[%clk
0:00:10]} 28. Bxe7 {[%clk 0:01:00.8]} 28... Qxc3 {[%clk 0:00:10.6]} 29. Qxc3
{[%clk 0:00:25]} 29... Rxc3 {[%clk 0:00:09.8]} 30. Bf3 {[%clk 0:00:25.3]} 30...
g4 {[%clk 0:00:09.4]} 31. Be4 {[%clk 0:00:25.3]} 31... f5 {[%clk 0:00:09.6]} 0-1

[Event "Early-Titled-Tuesday-Blitz-December-26-2023"]
[Site "Chess.com"]
[Date "2023.12.26"]
[Round "1"]
[White "SARGISMV"]
[Black "Alexander_Donchenko"]
[Result "0-1"]
[WhiteElo "2516"]
[BlackElo "2907"]
[TimeControl "180+1"]
[EndTime "8:06:58 PST"]
[Termination "Alexander_Donchenko won by resignation"]

1. d4 {[%clk 0:02:59]} 1... Nf6 {[%clk 0:02:43.4]} 2. c4 {[%clk 0:02:58]} 2...
e6 {[%clk 0:02:42.5]} 3. Nc3 {[%clk 0:02:56.8]} 3... Bb4 {[%clk 0:02:42.3]} 4.
Nf3 {[%clk 0:02:53.7]} 4... b6 {[%clk 0:02:41.3]} 5. Bd2 {[%clk 0:02:53.8]} 5...
Bb7 {[%clk 0:02:39.9]} 6. e3 {[%clk 0:02:53.3]} 6... Bxc3 {[%clk 0:02:39.4]} 7.
Bxc3 {[%clk 0:02:52.3]} 7... Ne4 {[%clk 0:02:40]} 8. Qc2 {[%clk 0:02:47.7]} 8...
O-O {[%clk 0:02:40.1]} 9. Bd3 {[%clk 0:02:46.7]} 9... Nxc3 {[%clk 0:02:40.4]}
10. Qxc3 {[%clk 0:02:42.8]} 10... f5 {[%clk 0:02:39.6]} 11. O-O {[%clk
0:02:27.3]} 11... d6 {[%clk 0:02:38.1]} 12. Rfe1 {[%clk 0:01:54.8]} 12... Bxf3
{[%clk 0:02:31.3]} 13. gxf3 {[%clk 0:01:54.4]} 13... Nd7 {[%clk 0:02:27.6]} 14.
Kh1 {[%clk 0:01:42]} 14... Qh4 {[%clk 0:02:26]} 15. Qd2 {[%clk 0:01:37]} 15...
e5 {[%clk 0:02:16.4]} 16. dxe5 {[%clk 0:01:17.4]} 16... Nxe5 {[%clk 0:02:14.4]}
17. Bxf5 {[%clk 0:00:55.4]} 17... Kh8 {[%clk 0:01:39.3]} 18. Qd5 {[%clk
0:00:23.7]} 18... Rae8 {[%clk 0:01:32]} 19. Be4 {[%clk 0:00:17.5]} 19... Qxf2
{[%clk 0:01:22.7]} 20. f4 {[%clk 0:00:15.4]} 20... Ng4 {[%clk 0:01:16.9]} 21.
Bg2 {[%clk 0:00:15.5]} 21... Rxe3 {[%clk 0:01:09.5]} 22. Rxe3 {[%clk 0:00:04.9]}
22... Qxe3 {[%clk 0:01:09.5]} 23. Qf3 {[%clk 0:00:03.4]} 23... Qxf3 {[%clk
0:01:05]} 24. Bxf3 {[%clk 0:00:03.5]} 24... Rxf4 {[%clk 0:01:05.8]} 25. Bxg4
{[%clk 0:00:03.9]} 25... Rxg4 {[%clk 0:01:06.6]} 26. b3 {[%clk 0:00:04.5]} 26...
Kg8 {[%clk 0:01:04.3]} 27. Re1 {[%clk 0:00:04.7]} 27... Kf7 {[%clk 0:01:04.4]}
28. Re2 {[%clk 0:00:04.4]} 28... a5 {[%clk 0:01:02.8]} 29. h3 {[%clk 0:00:04.7]}
29... Rg6 {[%clk 0:01:01.7]} 30. Kh2 {[%clk 0:00:05.6]} 30... h6 {[%clk
0:01:00.5]} 31. h4 {[%clk 0:00:05.1]} 31... Rg4 {[%clk 0:00:59.4]} 32. Kh3
{[%clk 0:00:05.4]} 32... h5 {[%clk 0:00:59.6]} 33. Rf2+ {[%clk 0:00:05]} 33...
Ke6 {[%clk 0:00:59.7]} 34. Rd2 {[%clk 0:00:05.6]} 34... g5 {[%clk 0:00:57.4]}
35. hxg5 {[%clk 0:00:04.3]} 35... Rxg5 {[%clk 0:00:58.3]} 36. Kh4 {[%clk
0:00:05]} 36... Re5 {[%clk 0:00:56.4]} 37. Rg2 {[%clk 0:00:05.4]} 37... Kd7
{[%clk 0:00:56.4]} 38. Rg7+ {[%clk 0:00:05.2]} 38... Kc6 {[%clk 0:00:56.8]} 39.
Rg2 {[%clk 0:00:05.8]} 39... Kc5 {[%clk 0:00:56.4]} 40. Rf2 {[%clk 0:00:05.8]}
40... Kb4 {[%clk 0:00:55.3]} 41. Rf7 {[%clk 0:00:05.9]} 41... Rc5 {[%clk
0:00:55.3]} 42. Rf2 {[%clk 0:00:05.2]} 42... Ka3 {[%clk 0:00:55.1]} 43. Rg2
{[%clk 0:00:05.5]} 43... a4 {[%clk 0:00:55.2]} 44. bxa4 {[%clk 0:00:05]} 44...
Kxa4 {[%clk 0:00:56.1]} 45. Rc2 {[%clk 0:00:03.9]} 45... Kb4 {[%clk 0:00:56]}
46. Rb2+ {[%clk 0:00:04.2]} 46... Kxc4 {[%clk 0:00:55.7]} 47. Rg2 {[%clk
0:00:01.9]} 0-1

[Event "Early-Titled-Tuesday-Blitz-December-26-2023"]
[Site "Chess.com"]
[Date "2023.12.26"]
[Round "1"]
[White "Vladimir_Zakhartsov"]
[Black "Slovak_fighter2000"]
[Result "1-0"]
[WhiteElo "2870"]
[BlackElo "2507"]
[TimeControl "180+1"]
[EndTime "8:06:59 PST"]
[Termination "Vladimir_Zakhartsov won by resignation"]

1. e4 {[%clk 0:03:00.2]} 1... e6 {[%clk 0:02:59.6]} 2. d4 {[%clk 0:03:00.3]}
2... d5 {[%clk 0:02:58.4]} 3. Nd2 {[%clk 0:03:00.9]} 3... c5 {[%clk 0:02:58.4]}
4. exd5 {[%clk 0:03:00.8]} 4... Qxd5 {[%clk 0:02:58.6]} 5. dxc5 {[%clk
0:03:00.6]} 5... Bxc5 {[%clk 0:02:58.3]} 6. Ngf3 {[%clk 0:03:00.1]} 6... Nf6
{[%clk 0:02:56.4]} 7. Bc4 {[%clk 0:03:00.1]} 7... Qh5 {[%clk 0:02:56.3]} 8. Qe2
{[%clk 0:02:58]} 8... O-O {[%clk 0:02:56]} 9. Nf1 {[%clk 0:02:57.6]} 9... Bd6
{[%clk 0:02:44.1]} 10. Bg5 {[%clk 0:02:37.4]} 10... Nc6 {[%clk 0:02:35.1]} 11.
O-O-O {[%clk 0:02:34.1]} 11... Bc7 {[%clk 0:02:30.6]} 12. Ng3 {[%clk 0:02:33.2]}
12... Qg4 {[%clk 0:02:24.6]} 13. h3 {[%clk 0:02:23]} 13... Bf4+ {[%clk
0:02:17.9]} 14. Kb1 {[%clk 0:02:22.1]} 14... Qxg5 {[%clk 0:02:15.9]} 15. Nxg5
{[%clk 0:02:21.8]} 15... Bxg5 {[%clk 0:02:16.8]} 16. Bb5 {[%clk 0:02:14.7]}
16... Nd5 {[%clk 0:02:02.8]} 17. Ne4 {[%clk 0:02:08.4]} 17... Be7 {[%clk
0:02:01.7]} 18. Bc4 {[%clk 0:02:05.9]} 18... Nb6 {[%clk 0:01:59]} 19. Nd6 {[%clk
0:02:03.7]} 19... Nxc4 {[%clk 0:01:49.1]} 20. Qxc4 {[%clk 0:02:01.6]} 20... Rd8
{[%clk 0:01:47.6]} 21. Nxc8 {[%clk 0:01:55.9]} 21... Raxc8 {[%clk 0:01:48.5]}
22. Rxd8+ {[%clk 0:01:55.8]} 22... Rxd8 {[%clk 0:01:49.4]} 23. Qe2 {[%clk
0:01:55.6]} 23... Rd5 {[%clk 0:01:35.8]} 24. Rd1 {[%clk 0:01:53.7]} 24... Re5
{[%clk 0:01:35.9]} 25. Qf3 {[%clk 0:01:52]} 25... Bf6 {[%clk 0:01:31.4]} 26. c3
{[%clk 0:01:48.9]} 26... Rb5 {[%clk 0:01:19.5]} 27. a3 {[%clk 0:01:47.2]} 27...
h6 {[%clk 0:01:19.3]} 28. Ka2 {[%clk 0:01:45.6]} 28... a5 {[%clk 0:01:17.3]} 29.
Qe3 {[%clk 0:01:34.1]} 29... Ne5 {[%clk 0:01:13.8]} 30. Qe4 {[%clk 0:01:29.7]}
30... g5 {[%clk 0:01:07.4]} 31. a4 {[%clk 0:01:28]} 31... Rb6 {[%clk 0:01:04.3]}
32. g3 {[%clk 0:01:25]} 32... Kg7 {[%clk 0:00:55.9]} 33. f4 {[%clk 0:01:24.7]}
33... Nc6 {[%clk 0:00:51.7]} 34. Rd7 {[%clk 0:01:22.7]} 34... gxf4 {[%clk
0:00:43.3]} 35. gxf4 {[%clk 0:01:15.6]} 35... Kg8 {[%clk 0:00:26.4]} 36. Qg2+
{[%clk 0:01:06]} 36... Kf8 {[%clk 0:00:26.4]} 37. Qf2 {[%clk 0:01:05.9]} 37...
Ra6 {[%clk 0:00:22.9]} 38. Rxb7 {[%clk 0:01:04.8]} 38... Kg7 {[%clk 0:00:22.9]}
39. Qe2 {[%clk 0:01:00.8]} 39... Ra8 {[%clk 0:00:22.4]} 40. Qxe6 {[%clk
0:00:58.9]} 40... Nd8 {[%clk 0:00:20.4]} 41. Qg4+ {[%clk 0:00:58.7]} 41... Kf8
{[%clk 0:00:19.8]} 42. Rb6 {[%clk 0:00:57]} 42... Be7 {[%clk 0:00:19.4]} 43.
Rxh6 {[%clk 0:00:55.8]} 43... Ke8 {[%clk 0:00:18.8]} 44. Rh8+ {[%clk 0:00:55.5]}
44... Bf8 {[%clk 0:00:18.9]} 45. Qe2+ {[%clk 0:00:55.1]} 1-0

[Event "Early-Titled-Tuesday-Blitz-December-26-2023"]
[Site "Chess.com"]
[Date "2023.12.26"]
[Round "1"]
[White "Mindhunter08"]
[Black "combidharma"]
[Result "0-1"]
[WhiteElo "2452"]
[BlackElo "2780"]
[TimeControl "180+1"]
[EndTime "8:07:01 PST"]
[Termination "combidharma won by resignation"]

1. e4 {[%clk 0:03:00.9]} 1... c5 {[%clk 0:02:58.4]} 2. Nf3 {[%clk 0:03:01.5]}
2... d6 {[%clk 0:02:58]} 3. Bb5+ {[%clk 0:03:01.6]} 3... Nd7 {[%clk 0:02:57.8]}
4. a4 {[%clk 0:03:01]} 4... a6 {[%clk 0:02:51.6]} 5. Be2 {[%clk 0:03:00]} 5...
Ngf6 {[%clk 0:02:49]} 6. Nc3 {[%clk 0:03:00.5]} 6... g6 {[%clk 0:02:49.3]} 7. d3
{[%clk 0:03:01.2]} 7... Bg7 {[%clk 0:02:49.2]} 8. O-O {[%clk 0:03:02.1]} 8...
O-O {[%clk 0:02:50.1]} 9. h3 {[%clk 0:03:02.8]} 9... e5 {[%clk 0:02:44.8]} 10.
a5 {[%clk 0:03:01.2]} 10... h6 {[%clk 0:02:44.2]} 11. Nd2 {[%clk 0:03:01.8]}
11... b5 {[%clk 0:02:37.5]} 12. axb6 {[%clk 0:03:00.1]} 12... Nxb6 {[%clk
0:02:38]} 13. Nb3 {[%clk 0:02:58.8]} 13... Be6 {[%clk 0:02:36.4]} 14. Na5 {[%clk
0:02:59]} 14... Qc7 {[%clk 0:02:36.6]} 15. f4 {[%clk 0:02:59.1]} 15... exf4
{[%clk 0:02:35.2]} 16. Bxf4 {[%clk 0:02:59.6]} 16... Nfd7 {[%clk 0:02:33.9]} 17.
Qd2 {[%clk 0:02:51.6]} 17... Kh7 {[%clk 0:02:30.4]} 18. Kh1 {[%clk 0:02:45.9]}
18... Ne5 {[%clk 0:02:28.2]} 19. b3 {[%clk 0:02:18.6]} 19... Qd7 {[%clk
0:02:15.2]} 20. Nc4 {[%clk 0:02:13.9]} 20... Nbxc4 {[%clk 0:02:13.1]} 21. bxc4
{[%clk 0:02:14.8]} 21... a5 {[%clk 0:01:58.4]} 22. Ra3 {[%clk 0:01:56.6]} 22...
a4 {[%clk 0:01:49.8]} 23. Rfa1 {[%clk 0:01:52.6]} 23... Bxh3 {[%clk 0:01:37.5]}
24. gxh3 {[%clk 0:01:46.7]} 24... Qxh3+ {[%clk 0:01:38.4]} 25. Bh2 {[%clk
0:01:46.6]} 25... f5 {[%clk 0:01:33]} 26. Bf1 {[%clk 0:01:41.2]} 26... Qh4
{[%clk 0:01:26.5]} 27. Qe1 {[%clk 0:01:01.7]} 27... Qh5 {[%clk 0:01:23.1]} 28.
Be2 {[%clk 0:00:54.1]} 28... Nf3 {[%clk 0:01:19.7]} 29. Qf2 {[%clk 0:00:44.8]}
29... fxe4 {[%clk 0:01:15.7]} 30. Nxe4 {[%clk 0:00:16.2]} 30... Be5 {[%clk
0:01:15.5]} 31. Bxf3 {[%clk 0:00:14]} 31... Rxf3 {[%clk 0:01:14.4]} 32. Qe2
{[%clk 0:00:07.1]} 32... Rh3 {[%clk 0:00:59.2]} 33. Qxh5 {[%clk 0:00:05.6]}
33... Rxh5 {[%clk 0:01:00.1]} 34. Rxa4 {[%clk 0:00:04.9]} 34... Rxh2+ {[%clk
0:00:58.8]} 35. Kg1 {[%clk 0:00:05.1]} 35... Rf8 {[%clk 0:00:58.5]} 36. Ra7+
{[%clk 0:00:05]} 36... Kg8 {[%clk 0:00:58.7]} 37. Ra8 {[%clk 0:00:05.7]} 37...
Rxc2 {[%clk 0:00:57.7]} 38. Rxf8+ {[%clk 0:00:05.7]} 38... Kxf8 {[%clk
0:00:58.6]} 39. Ra8+ {[%clk 0:00:06.4]} 39... Ke7 {[%clk 0:00:59.2]} 40. Ra7+
{[%clk 0:00:07]} 40... Ke6 {[%clk 0:00:59.9]} 41. Rh7 {[%clk 0:00:07.1]} 41...
Bd4+ {[%clk 0:01:00.8]} 42. Kf1 {[%clk 0:00:07.2]} 42... h5 {[%clk 0:01:01.7]}
43. Ng5+ {[%clk 0:00:07.6]} 43... Kf5 {[%clk 0:01:01.4]} 44. Nf7 {[%clk
0:00:07.4]} 44... Be5 {[%clk 0:00:58.5]} 45. Nh6+ {[%clk 0:00:06.8]} 45... Kf4
{[%clk 0:00:57.3]} 46. Rf7+ {[%clk 0:00:04.1]} 46... Ke3 {[%clk 0:00:57.5]} 0-1

[Event "Early-Titled-Tuesday-Blitz-December-26-2023"]
[Site "Chess.com"]
[Date "2023.12.26"]
[Round "1"]
[White "Lion-Al-Messi"]
[Black "Barbix1"]
[Result "1-0"]
[WhiteElo "2624"]
[BlackElo "2287"]
[TimeControl "180+1"]
[EndTime "8:07:02 PST"]
[Termination "Lion-Al-Messi won by checkmate"]

1. e4 {[%clk 0:03:00.9]} 1... c5 {[%clk 0:02:55.6]} 2. Nf3 {[%clk 0:03:01.1]}
2... g6 {[%clk 0:02:56]} 3. d4 {[%clk 0:03:00.9]} 3... cxd4 {[%clk 0:02:55.1]}
4. Qxd4 {[%clk 0:03:01.8]} 4... Nf6 {[%clk 0:02:53.7]} 5. e5 {[%clk 0:03:02.1]}
5... Nc6 {[%clk 0:02:50.2]} 6. Qa4 {[%clk 0:03:02.1]} 6... Nd5 {[%clk
0:02:50.4]} 7. Qe4 {[%clk 0:03:02.3]} 7... Nb6 {[%clk 0:02:41.8]} 8. Nc3 {[%clk
0:03:02]} 8... Bg7 {[%clk 0:02:38.9]} 9. Bf4 {[%clk 0:03:01.8]} 9... d5 {[%clk
0:02:38.5]} 10. exd6 {[%clk 0:03:01.9]} 10... Bf5 {[%clk 0:02:33.9]} 11. dxe7
{[%clk 0:03:01.9]} 11... Qd7 {[%clk 0:01:49.4]} 12. Qe2 {[%clk 0:02:58.3]} 12...
Nb4 {[%clk 0:01:42.9]} 13. Ne4 {[%clk 0:02:43.4]} 13... Bxe4 {[%clk 0:01:13.9]}
14. Qxe4 {[%clk 0:02:44.3]} 14... Bxb2 {[%clk 0:01:13.9]} 15. Rd1 {[%clk
0:02:39.6]} 15... Bc3+ {[%clk 0:00:38.1]} 16. Bd2 {[%clk 0:02:39.4]} 16... Bxd2+
{[%clk 0:00:36.7]} 17. Rxd2 {[%clk 0:02:40.3]} 17... Qxe7 {[%clk 0:00:37.1]} 18.
Bb5+ {[%clk 0:02:40.6]} 18... Kf8 {[%clk 0:00:37.3]} 19. Qxe7+ {[%clk
0:02:40.9]} 19... Kxe7 {[%clk 0:00:38.2]} 20. O-O {[%clk 0:02:41.1]} 20... Rhd8
{[%clk 0:00:32.9]} 21. Re2+ {[%clk 0:02:40.8]} 21... Kf8 {[%clk 0:00:31.8]} 22.
c3 {[%clk 0:02:41.7]} 22... N4d5 {[%clk 0:00:28.4]} 23. Rc1 {[%clk 0:02:37.8]}
23... a6 {[%clk 0:00:23.6]} 24. c4 {[%clk 0:02:08.6]} 24... Nf4 {[%clk
0:00:23.5]} 25. Re4 {[%clk 0:01:55.2]} 25... Nd3 {[%clk 0:00:23.5]} 26. Rb1
{[%clk 0:01:54.5]} 26... axb5 {[%clk 0:00:23.1]} 27. Rxb5 {[%clk 0:01:55.4]}
27... Nd7 {[%clk 0:00:13.8]} 28. h4 {[%clk 0:01:45.2]} 28... N7c5 {[%clk
0:00:13.6]} 29. Re2 {[%clk 0:01:42.5]} 29... Ra3 {[%clk 0:00:10.9]} 30. Ng5
{[%clk 0:01:42.5]} 30... h6 {[%clk 0:00:09.3]} 31. Nh3 {[%clk 0:01:39]} 31...
Rc3 {[%clk 0:00:09.4]} 32. h5 {[%clk 0:01:36.8]} 32... Rxc4 {[%clk 0:00:09.1]}
33. hxg6 {[%clk 0:01:37]} 33... fxg6 {[%clk 0:00:10]} 34. Rb6 {[%clk 0:01:37.1]}
34... Kg7 {[%clk 0:00:07.5]} 35. Re7+ {[%clk 0:01:37.2]} 35... Kf8 {[%clk
0:00:07.5]} 36. Rh7 {[%clk 0:01:36.5]} 36... Rc1+ {[%clk 0:00:07.2]} 37. Kh2
{[%clk 0:01:36.2]} 37... Ne5 {[%clk 0:00:06.1]} 38. f4 {[%clk 0:01:15]} 38...
Nf7 {[%clk 0:00:05.3]} 39. Rxg6 {[%clk 0:01:13.3]} 39... Ne4 {[%clk 0:00:04.5]}
40. Re6 {[%clk 0:01:10]} 40... Rd7 {[%clk 0:00:04.4]} 41. Rxe4 {[%clk
0:01:09.1]} 41... Rc2 {[%clk 0:00:04.4]} 42. f5 {[%clk 0:01:05]} 42... Rdd2
{[%clk 0:00:04.5]} 43. Nf4 {[%clk 0:01:05.1]} 43... Nd6 {[%clk 0:00:02.8]} 44.
Ree7 {[%clk 0:00:54.5]} 44... Nxf5 {[%clk 0:00:02]} 45. Ng6+ {[%clk 0:00:47.7]}
45... Kg8 {[%clk 0:00:02.4]} 46. Rh8# {[%clk 0:00:48.6]} 1-0

[Event "Early-Titled-Tuesday-Blitz-December-26-2023"]
[Site "Chess.com"]
[Date "2023.12.26"]
[Round "1"]
[White "laskakid"]
[Black "IlanSchnaider"]
[Result "0-1"]
[WhiteElo "2376"]
[BlackElo "2691"]
[TimeControl "180+1"]
[EndTime "8:07:06 PST"]
[Termination "IlanSchnaider won by resignation"]

1. d4 {[%clk 0:03:00.9]} 1... Nf6 {[%clk 0:02:59.3]} 2. c4 {[%clk 0:03:00.6]}
2... g6 {[%clk 0:02:59.6]} 3. Nc3 {[%clk 0:03:00.4]} 3... d5 {[%clk 0:02:59.8]}
4. Nf3 {[%clk 0:02:59.7]} 4... Bg7 {[%clk 0:03:00]} 5. Bg5 {[%clk 0:02:59.3]}
5... Ne4 {[%clk 0:02:59]} 6. Bf4 {[%clk 0:02:59.2]} 6... Nxc3 {[%clk 0:02:59.2]}
7. bxc3 {[%clk 0:02:59.2]} 7... dxc4 {[%clk 0:02:55.6]} 8. e3 {[%clk 0:02:57.4]}
8... O-O {[%clk 0:02:55.3]} 9. Bxc4 {[%clk 0:02:53.9]} 9... c5 {[%clk 0:02:56]}
10. O-O {[%clk 0:02:50.9]} 10... Nc6 {[%clk 0:02:56.1]} 11. Qe2 {[%clk 0:02:37]}
11... Qa5 {[%clk 0:02:54.9]} 12. Rac1 {[%clk 0:02:29.7]} 12... cxd4 {[%clk
0:02:50.8]} 13. cxd4 {[%clk 0:02:28.8]} 13... Bg4 {[%clk 0:02:34.1]} 14. h3
{[%clk 0:02:25.1]} 14... Bxf3 {[%clk 0:02:33.4]} 15. Qxf3 {[%clk 0:02:25.3]}
15... Rac8 {[%clk 0:02:24.8]} 16. Qe2 {[%clk 0:02:14.3]} 16... e5 {[%clk
0:02:15.1]} 17. dxe5 {[%clk 0:02:11.6]} 17... Nxe5 {[%clk 0:02:15.7]} 18. Bb3
{[%clk 0:02:07.2]} 18... Nc6 {[%clk 0:02:07.6]} 19. Rfd1 {[%clk 0:02:03.1]}
19... Rcd8 {[%clk 0:02:06.2]} 20. Qf3 {[%clk 0:01:48.5]} 20... Qf5 {[%clk
0:01:31.1]} 21. Bd5 {[%clk 0:01:24.9]} 21... Nb4 {[%clk 0:01:18.1]} 22. Bb3
{[%clk 0:01:11.6]} 22... Nc6 {[%clk 0:00:42.8]} 23. Bd5 {[%clk 0:00:59.2]} 23...
Nb4 {[%clk 0:00:40.8]} 24. Bb3 {[%clk 0:00:59.2]} 24... Rxd1+ {[%clk 0:00:15.3]}
25. Rxd1 {[%clk 0:00:58]} 25... Nc6 {[%clk 0:00:16]} 26. Bd6 {[%clk 0:00:50.5]}
26... Qxf3 {[%clk 0:00:14.7]} 27. gxf3 {[%clk 0:00:50.7]} 27... Rd8 {[%clk
0:00:15.4]} 28. Bc5 {[%clk 0:00:46.8]} 28... Rxd1+ {[%clk 0:00:15.2]} 29. Bxd1
{[%clk 0:00:46.8]} 29... Bf8 {[%clk 0:00:15.9]} 30. Bxf8 {[%clk 0:00:44.7]}
30... Kxf8 {[%clk 0:00:16.8]} 31. Kf1 {[%clk 0:00:44.1]} 31... Ke7 {[%clk
0:00:16.7]} 32. Ke2 {[%clk 0:00:43.3]} 32... Kd6 {[%clk 0:00:17.3]} 33. Kd3
{[%clk 0:00:43]} 33... Kc5 {[%clk 0:00:17]} 34. Bb3 {[%clk 0:00:42.1]} 34... a5
{[%clk 0:00:17.7]} 35. Bxf7 {[%clk 0:00:41.2]} 35... Ne5+ {[%clk 0:00:18]} 36.
Ke4 {[%clk 0:00:39.3]} 36... Nxf7 {[%clk 0:00:18.9]} 37. f4 {[%clk 0:00:38.8]}
37... b5 {[%clk 0:00:18.6]} 38. f5 {[%clk 0:00:38.5]} 38... gxf5+ {[%clk
0:00:18.8]} 39. Kxf5 {[%clk 0:00:38.8]} 39... b4 {[%clk 0:00:19.6]} 40. e4
{[%clk 0:00:36]} 40... a4 {[%clk 0:00:19.6]} 41. Kf6 {[%clk 0:00:34.5]} 41... b3
{[%clk 0:00:15.6]} 42. axb3 {[%clk 0:00:32.7]} 42... axb3 {[%clk 0:00:16]} 43.
Kxf7 {[%clk 0:00:33.1]} 43... b2 {[%clk 0:00:16.6]} 44. e5 {[%clk 0:00:33.5]}
44... b1=Q {[%clk 0:00:17.4]} 45. e6 {[%clk 0:00:33.9]} 45... Qf5+ {[%clk
0:00:18]} 46. Ke7 {[%clk 0:00:34.1]} 46... Kd5 {[%clk 0:00:18.6]} 47. Kd7 {[%clk
0:00:33.9]} 47... Qxe6+ {[%clk 0:00:19.1]} 0-1